Workbook

Sheet credit
A1: تقرير المرابحة والبيع الاجل | K1: =COLUMN() -> 11 | L1: =COLUMN() -> 12 | M1: =COLUMN() -> 13 | N1: =COLUMN() -> 14 | O1: =COLUMN() -> 15 | P1: =COLUMN() -> 16 | Q1: الأقساط
Q2: 1 | S2: 2 | U2: 3 | W2: 4 | Y2: 5 | AA2: 6 | AC2: 7 | AE2: 8 | AG2: 9 | AI2: 10 | AK2: 11 | AM2: 12
Q3: القسط الأول | S3: القسط لثاني | U3: القسط الثالث | W3: القسط الرابع | Y3: القسط الخامس | AA3: القسط السادس | AC3: القسط السابع | AE3: القسط الثامن | AG3: القسط التاسع | AI3: القسط العاشر | AK3: القسط الحادي عشر | AM3: القسط الثاني عشر
A4: م | B4: رقم الاذن | C4: التاريخ | D4: اسم العميل | E4: اسم الضامن | F4: اسم الممول | G4: بيان /الصنف | H4: القيمة الاصلية | I4: دفعة | J4: القيمة للتقسيط | K4: عائد التمويل | L4: عدد الأقساط | M4: قيمة القسط | N4: الرصيد المتبقي | O4: اجمالي المسدد | P4: عدد الدفعات | Q4: التاريخ | R4: القيمة | S4: التاريخ | T4: القيمة | U4: التاريخ | V4: القيمة | W4: التاريخ | X4: القيمة | Y4: التاريخ | Z4: القيمة | AA4: التاريخ | AB4: القيمة | AC4: التاريخ | AD4: القيمة | AE4: التاريخ | AF4: القيمة | AG4: التاريخ | AH4: القيمة | AI4: التاريخ | AJ4: القيمة | AK4: التاريخ | AL4: القيمة | AM4: التاريخ | AN4: القيمة
A5: =IF((A4)<>"م",(A4)+1,1) -> 1 | B5: 2 | C5: 2022-06-09 | D5: محمد ابو الجملين | E5: رمضان 2 | F5: لبليلبسيبي | G5: [ih. ;lfd,jv ;hlg | H5: 4000 | I5: 1000 | J5: 3300 | K5: =(J5-(H5-I5)) -> 300 | L5: 10 | M5: =J5/L5 -> 330 | N5: =J5-O5 -> 3300 | O5: =(R5+T5+V5+X5+Z5+AB5+AD5+AF5+AH5+AJ5+AL5+AN5) -> 0 | P5: =COUNTA(Q5:AN5)/2 -> 0
A6: =IF((A5)<>"م",(A5)+1,1) -> 2 | B6: 3 | C6: 2022-06-09 | D6: الاخير باذن الله | E6: لبلبل | F6: الاخير | G6: cghgsdsdsdd | H6: 5000 | I6: 1500 | J6: 4000 | K6: 500 | L6: 10 | M6: 400 | N6: =J6-(O6) -> 2800 | O6: =(R6+T6+V6+X6+Z6+AB6+AD6+AF6+AH6+AJ6+AL6+AN6) -> 1200 | P6: 3 | Q6: 13/6/2022 | R6: 400 | S6: 2022-12-06 | T6: 400 | U6: 2022-06-16 | V6: 400
A7: 3 | B7: 4 | C7: 2022-06-10 | D7: محمد ابو الجملين ابرهيم | E7: رمضان 1 | F7: محمد ابو الجملين ابراهيم 2 | G7: مكؤطكشسممكشسيكشسيميمسيشك | H7: 6000 | I7: 1200 | J7: 5500 | K7: 700 | L7: 10 | M7: 550 | N7: =J7-(O7) -> 4950 | O7: =(R7+T7+V7+X7+Z7+AB7+AD7+AF7+AH7+AJ7+AL7+AN7) -> 550 | P7: 1 | Q7: 13/6/2022 | R7: 550
A8: 4 | B8: 5 | C8: 2022-06-10 | D8: محمد ابو الجملين ابرهيم | E8: رمضان 2 | F8: محمد ابو الجملين | G8: بيع اجهزة كمبيوتر | H8: 4000 | I8: 1000 | J8: 3300 | K8: 300 | L8: 10 | M8: 330 | N8: =J8-(O8) -> 2310 | O8: =(R8+T8+V8+X8+Z8+AB8+AD8+AF8+AH8+AJ8+AL8+AN8) -> 990 | P8: =COUNTA(Q8:AN8)/2 -> 3 | Q8: 2022-12-06 | R8: 330 | S8: 2022-11-06 | T8: 330 | U8: 2022-12-06 | V8: 330
A9: 5 | B9: 6 | C9: 2022-06-10 | D9: الاخير باذن الله | E9: لبلبل | F9: الاخير | G9: l';ld';dl;d';'aa | H9: 3500 | I9: 1500 | J9: 2500 | K9: 500 | L9: 10 | M9: 250 | N9: =J9-(O9) -> 2500 | O9: =(R9+T9+V9+X9+Z9+AB9+AD9+AF9+AH9+AJ9+AL9+AN9) -> 0 | P9: 0
A10: =IF((A9)<>"م",(A9)+1,1) -> 6 | B10: 7 | C10: 2022-06-11 | D10: لبليلبسيبي | E10: تتببسس | F10: الأصول الثابتة | G10: ئئئ | H10: 2000 | I10: 200 | J10: 2100 | K10: 300 | L10: 10 | M10: 210 | N10: =J10-(O10) -> 2100 | O10: =(Q10+S10+U10+W10+Y10+AA10+AC10+AE10+AG10+AI10+AK10+AM10) -> 0 | P10: 0

Sheet Sheet1
